Cogmind - Beta 9 *** ADVENTURER MODE // 2019.10.27 @ 10:24:21 Player: Scandroid Result: Self-destructed Performance ------------- Evolutions (3) 1500 Regions Visited (4) 800 Robots Destroyed (83) 415 Value Destroyed (1780) 1780 Prototype IDs (4) 80 Alien Tech Used (0) 0 Bonus (62) 62 TOTAL SCORE: 4637 Bonus ------- High Alert Combat Kills 62 Cogmind --------- Core Integrity 687/700 Matter 204/300 Energy 85/100 System Corruption 0% Temperature Cool (0) Location -7/Factory Parts ------- Power (2) Propulsion (4) Improved VTOL Module Utility (4) Small Storage Unit Advanced Weight Redist. System Advanced Sensor Array Improved Signal Interpreter Weapon (3) Minigun Inventory (6) Thermal Converter Hacking Suite Heavy Particle Gun Minigun Grenade Launcher Peak State ------------ Power Improved Ion Engine Propulsion Improved Carbon-fiber Leg VTOL Module Improved VTOL Module Utility Small Storage Unit Advanced Weight Redist. System Advanced Sensor Array Improved Signal Interpreter Weapon Minigun Inventory Thermal Converter Heavy Particle Gun Minigun Grenade Launcher [Rating: 25] Favorites ----------- Power Light Ion Engine Engine Light Ion Engine Propulsion Flight Unit Treads Light Treads Leg Aluminum Leg Wheel Wheel Flight Unit Flight Unit Utility Small Storage Unit Device Advanced Weight Redist. System Storage Small Storage Unit Processor Improved Signal Interpreter Protection Utility Shielding Weapon Minigun Energy Gun Small Laser Ballistic Gun Minigun Launcher Grenade Launcher Special Weapon Mining Laser Build | -11 -10 -9 -8 -7 ------- Run | Scr Mat Mat Mat Fac Slots Evolved 6 | . . 2 2 2 Power 1 | . . . . 1 Propulsion 2 | . . 1 1 . Utility 2 | . . 1 1 . Weapon 1 | . . . . 1 Parts Attached 73 | 5 13 17 37 1 Power 12 | 1 1 3 7 . Engine 12 | 1 1 3 7 . Core . | . . . . . Reactor . | . . . . . Propulsion 22 | 2 2 4 13 1 Treads 2 | . . . 2 . Leg 4 | . . 1 2 1 Wheel 2 | 2 . . . . Hover . | . . . . . Flight 14 | . 2 3 9 . Utility 18 | 1 4 8 5 . Device 9 | . 2 2 5 . Storage 3 | 1 2 . . . Processor 4 | . . 4 . . Hackware . | . . . . . Protection 2 | . . 2 . . Artifact . | . . . . . Weapon 21 | 1 6 2 12 . Energy Gun 3 | 1 1 . 1 . Energy Cannon . | . . . . . Ballistic Gun 12 | . 4 2 6 . Ballistic Cannon . | . . . . . Launcher 4 | . . . 4 . Special Weapon 2 | . 1 . 1 . Impact Weapon . | . . . . . Slashing Weapon . | . . . . . Piercing Weapon . | . . . . . Special Melee Weapon . | . . . . . Unidentified Prototypes 4 | . . . 4 . Parts Lost 19 | . 2 4 12 1 Power 1 | . . 1 . . Propulsion 10 | . . 1 8 1 Utility 2 | . . 1 1 . Weapon 6 | . 2 1 3 . Highest Loss Streak 3 | . 2 3 3 1 Average Slot Usage (%) 81 | . 93 81 79 68 Engine 10 | . 14 10 9 7 Treads 1 | . . . 3 . Leg 2 | . . 3 1 6 Flight 17 | . 27 14 16 15 Device 11 | . 10 9 13 15 Storage 10 | . 14 11 9 7 Processor 8 | . . 12 9 7 Energy Gun 2 | . 9 . 1 . Ballistic Gun 15 | . 14 19 13 7 Naked Turns . | . . . . . Heaviest Build 18 | 8 10 16 18 15 Greatest Support 40 | 20 20 12 40 27 Greatest Overweight (x) 4 | . . 3 4 . Average Overweight (x) . | . . . . . Largest Inventory Capacity 10 | 6 10 6 6 6 Average Capacity 5 | 5 6 6 6 6 Most Carried 6 | 3 6 6 6 5 Average Carried 4 | 2 4 4 5 4 Final Capacity 6 | . . . . 6 Final Carried 5 | . . . . 5 Class Distribution -------------------- 65% | Mutant 34% | Scavenger-Mutant Dominant Class ---------------- Mutant | -10/Materials Scavenger-Mutant | -9/Materials Mutant | -8/Materials Mutant | -7/Factory Resources | -11 -10 -9 -8 -7 ----------- Run | Scr Mat Mat Mat Fac Matter Collected 1683 | 234 100 434 915 . Remotely . | . . . . . Salvage Created 2545 | . 250 1114 1181 . Parts 178 | . 31 63 84 . Haulers Intercepted 2 | . . 1 1 . Recyclers Shooed 4 | . . . 4 . Parts Field Recycled . | . . . . . Retrieved Matter . | . . . . . Parts Self-Destructed . | . . . . . Prevented . | . . . . . Kills | -11 -10 -9 -8 -7 ------- Run | Scr Mat Mat Mat Fac Combat Hostiles Destroyed 53 | . 9 19 25 . Guns 46 | . 9 19 18 . Cannons 1 | . . . 1 . AOE 6 | . . . 6 . Classes Destroyed 11 | . 3 6 2 . Worker 12 | . . 5 7 . Builder 3 | . . 1 2 . Tunneler 1 | . . . 1 . Hauler 2 | . . 1 1 . Recycler 4 | . . 3 1 . Watcher 8 | . 2 3 3 . Swarmer 22 | . 6 8 8 . Grunt 19 | . 3 7 9 . Duelist 2 | . . 1 1 . Sentry 9 | . . 3 6 . Hunter 1 | . . . 1 . Best Kill Streak 7 | . 5 7 7 . Combat Bots Only 6 | . 5 4 6 . Max Kills in Single Turn 3 | . 2 2 3 . Gunslinging 1 | . 1 1 1 . Exploded 2 | . . . 2 . Melee . | . . . . . Uniques/NPCs Destroyed . | . . . . . Combat | -11 -10 -9 -8 -7 -------- Run | Scr Mat Mat Mat Fac Damage Taken 1972 | . 210 549 1152 61 Core 498 | . 74 152 259 13 Absorbed by Shields . | . . . . . Core Remaining (%) 71 | 100 70 62 52 . Volleys Fired 204 | . 35 84 85 . Largest 2 | . 2 2 2 . Hottest 125 | . 100 50 125 . Shots Fired 336 | . 58 136 142 . Gun 316 | . 56 136 124 . Cannon . | . . . . . Launcher 15 | . . . 15 . Special 5 | . 2 . 3 . Kinetic 267 | . 22 136 109 . Thermal 54 | . 36 . 18 . Explosive 15 | . . . 15 . Electromagnetic . | . . . . . Robot Hit Streak 31 | . 10 31 16 . Robot Miss Streak 4 | . 4 3 4 . Penetration Max . | . . . . . Secondary Targets 9 | . 3 3 3 . Max Gunslinging Chain 1 | . 1 1 1 . Shots Hit Robots 249 | . 34 111 104 . Core Hits 140 | . 19 49 72 . Critical Hits 1 | . . . 1 . Critical Kills . | . . . . . Critical Parts Destroyed . | . . . . . Melee Attacks . | . . . . . Impact . | . . . . . Slashing . | . . . . . Piercing . | . . . . . Sneak Attacks . | . . . . . Combat Hostiles . | . . . . . Follow-up Attacks . | . . . . . Damage Inflicted 4563 | . 357 1449 2757 . Guns 3354 | . 357 1449 1548 . Cannons . | . . . . . Explosions 1125 | . . . 1125 . Melee . | . . . . . Ramming 12 | . . . 12 . Kinetic 2860 | . 97 1449 1314 . Thermal 566 | . 260 . 306 . Explosive 1125 | . . . 1125 . Electromagnetic . | . . . . . Impact . | . . . . . Slashing . | . . . . . Piercing . | . . . . . Highest Corruption 1 | . . 1 . . Average Corruption 1 | . . 1 . . Corruption Purged . | . . . . . Effects 4 | . . 4 . . Message Errors 1 | . . 1 . . Energy Discharges 1 | . . 1 . . Targeting Errors 2 | . . 2 . . Overload Shots . | . . . . . Overflow Damage 126 | . . . 126 . Projectiles . | . . . . . Explosions 126 | . . . 126 . Melee . | . . . . . Knockbacks . | . . . . . Impact . | . . . . . Kinetic . | . . . . . Secondary . | . . . . . Self-Inflicted Damage 128 | . . . 128 . Shots 3 | . . . 3 . Rammed 5 | . . 1 4 . Targets Rammed 5 | . . 1 4 . Kicked . | . . . . . Crushed . | . . . . . Highest Temperature 96 | . 96 20 96 . Average Temperature 21 | . 34 7 19 . Received Heat Transfer 741 | . 78 207 450 6 Siege Activations . | . . . . . Robots Corrupted . | . . . . . Combat Hostiles . | . . . . . Parts Fried . | . . . . . Impact Corruptions . | . . . . . Robots Melted . | . . . . . Combat Hostiles . | . . . . . Parts Melted 1 | . 1 . . . Heat Transferred 1194 | . 600 . 594 . Parts Sabotaged . | . . . . . Parts Stolen . | . . . . . Parts Stripped . | . . . . . Power Chain Reactions . | . . . . . Missiles Intercepted . | . . . . . Alert | -11 -10 -9 -8 -7 ------- Run | Scr Mat Mat Mat Fac Peak Influence 692 | . 245 315 692 237 Average Influence 259 | . 173 169 400 227 Maximum Alert Level 2 | . 1 1 2 1 Low Security (%) 29 | . . . . . Level 1 52 | . . . . . Level 2 17 | . . . . . Level 3 . | . . . . . Level 4 . | . . . . . Level 5 . | . . . . . High Security . | . . . . . Max Security . | . . . . . Squads Dispatched 4 | . 1 . 3 . Investigation 2 | . 1 . 1 . Extermination . | . . . . . Reinforcement 2 | . . . 2 . Assault . | . . . . . Garrison . | . . . . . Intercept . | . . . . . Construction Impeded 1 | . . . 1 . Haulers Reinforced . | . . . . . Stealth | -11 -10 -9 -8 -7 --------- Run | Scr Mat Mat Mat Fac Distress Signals 4 | . 1 1 2 . Communications Jammed . | . . . . . Distress Signals . | . . . . . Times Spotted 86 | . 18 26 41 1 Peak Tracking Total 7 | . 4 5 7 1 Tactical Retreats 8 | . 4 1 3 . Traps | -11 -10 -9 -8 -7 ------- Run | Scr Mat Mat Mat Fac Traps Triggered 2 | . . . 1 1 Indirectly . | . . . . . Trap Hack Attempts . | . . . . . Triggered . | . . . . . Disarmed . | . . . . . Reprogrammed . | . . . . . Reused . | . . . . . Traps Extracted . | . . . . . Installed . | . . . . . Triggered . | . . . . . Machines | -11 -10 -9 -8 -7 ---------- Run | Scr Mat Mat Mat Fac Machines Disabled 1 | . . . 1 . Max in Single Turn 1 | . . . 1 . Machines Sabotaged . | . . . . . Garrisons Compromised . | . . . . . Overloaded Fab Kills . | . . . . . Fab Network Shutdowns . | . . . . . Hacking | -11 -10 -9 -8 -7 --------- Run | Scr Mat Mat Mat Fac Machines Accessed 13 | . 5 6 2 . Terminals 9 | . 4 5 . . Fabricators . | . . . . . Repair Stations 1 | . . . 1 . Recycling Units 1 | . 1 . . . Scanalyzers 2 | . . 1 1 . Garrison Access . | . . . . . Total Hacks 34 | . 16 11 7 . Successful 29 | . 15 7 7 . Failed 5 | . 1 4 . . Catastrophic . | . . . . . Database Lockouts . | . . . . . Manual . | . . . . . Terminals 21 | . 12 9 . . Fabricators . | . . . . . Repair Stations 2 | . . . 2 . Recycling Units 4 | . 4 . . . Scanalyzers 7 | . . 2 5 . Garrison Access . | . . . . . Terminal Hacks 18 | . 11 7 . . Record 12 | . 7 5 . . Emergency Access Points 1 | . 1 . . . Locate Traps 2 | . 1 1 . . Dispatch Records 1 | . 1 . . . Recall Investigation 1 | . . 1 . . Zone Layout 1 | . 1 . . . Fabricator Hacks . | . . . . . Repair Station Hacks 2 | . . . 2 . Scan Component 1 | . . . 1 . Repair 1 | . . . 1 . Recycling Unit Hacks 4 | . 4 . . . Recycle Component 1 | . 1 . . . Process 1 | . 1 . . . Report Inventory 1 | . 1 . . . Retrieve Matter 1 | . 1 . . . Scanalyzer 5 | . . . 5 . Insert Component 3 | . . . 3 . Analyze 2 | . . . 2 . Garrison Access Hacks . | . . . . . Unauthorized Hacks . | . . . . . Terminals . | . . . . . Fabricators . | . . . . . Repair Stations . | . . . . . Recycling Units . | . . . . . Scanalyzers . | . . . . . Garrison Access . | . . . . . Data Cores Recovered . | . . . . . Used . | . . . . . Hacking Detections 7 | . 4 2 1 . Full Trace Events 4 | . 2 1 1 . Feedback Events 1 | . . 1 . . Corruption 1 | . . 1 . . Feedback Blocked . | . . . . . Robot Schematics Acquired . | . . . . . Robots Built . | . . . . . Matter . | . . . . . Time . | . . . . . Total Robot Build Rating . | . . . . . Part Schematics Acquired 2 | . . . 2 . Parts Built . | . . . . . Matter . | . . . . . Time . | . . . . . Total Part Build Rating . | . . . . . Parts Repaired 1 | . . . 1 . Time 38 | . . . 38 . Parts Recycled 1 | . 1 . . . Recycled Matter 28 | . 28 . . . Retrieved Matter 28 | . 28 . . . Retrieved Components . | . . . . . Parts Scanalyzed 2 | . . . 2 . Part Schematics Acquired 2 | . . . 2 . Parts Damaged . | . . . . . Bothacking | -11 -10 -9 -8 -7 ------------ Run | Scr Mat Mat Mat Fac Used RIF Installer . | . . . . . Robots Hacked . | . . . . . Non-combat . | . . . . . Combat . | . . . . . Robot Hacks Applied . | . . . . . Relay Couplers Released . | . . . . . Robots Rewired . | . . . . . Allies Hacked . | . . . . . Hacks Repelled . | . . . . . Allies | -11 -10 -9 -8 -7 -------- Run | Scr Mat Mat Mat Fac Total Allies . | . . . . . Largest Group . | . . . . . Highest-Rated Group . | . . . . . Highest-Rated Ally . | . . . . . Total Orders . | . . . . . Ally Attacks . | . . . . . Total Damage . | . . . . . Kills . | . . . . . Allies Corrupted . | . . . . . Allies Melted . | . . . . . Intel | -11 -10 -9 -8 -7 ------- Run | Scr Mat Mat Mat Fac Robot Analysis Total . | . . . . . Derelict Logs Recovered . | . . . . . Drone Launches . | . . . . . Drone Recoveries . | . . . . . Exploration | -11 -10 -9 -8 -7 ------------- Run | Scr Mat Mat Mat Fac Turns Passed 2523 | 53 367 995 991 117 Spaces Moved 2135 | 52 639 689 646 109 Core 14 | 4 . 7 . 3 Treads 101 | . . . 101 . Legs 321 | . . 166 67 88 Wheels 53 | 48 5 . . . Hover . | . . . . . Flight 1646 | . 634 516 478 18 Fastest Speed 31 | 50 37 37 31 35 Average Speed 86 | 77 37 109 107 104 Slowest Speed 400 | 80 80 280 400 120 Overloaded Moves . | . . . . . Propulsion Burnouts . | . . . . . Robots Hopped 4 | . 2 1 1 . Cave-ins Triggered . | . . . . . Exploration Rate (%) 40 | 4 77 57 61 4 Regions Visited 4 Branch Regions . Pre-discovered Areas . | . . . . . Known Exits Taken 2 | . . 1 1 . Unknown Exits Taken 2 | 1 1 . . . Scrap Searched . | . . . . . Spaces Dug 2 | . 2 . . . Terrain Destroyed 105 | . 2 . 103 . Melee . | . . . . . Projectile 2 | . 2 . . . AOE 103 | . . . 103 . Actions | -11 -10 -9 -8 -7 --------- Run | Scr Mat Mat Mat Fac Total 2514 | 64 706 822 810 112 Wait . | . . . . . Move 2123 | 51 634 686 643 109 Hop 4 | . 2 1 1 . Pick Up 69 | 8 15 19 25 2 Fast Attach . | . . . . . Attach 40 | 5 5 10 19 1 Detach 4 | . . 3 1 . Swap 33 | . 8 7 18 . Drop 32 | . 7 11 14 . Fire 204 | . 35 84 85 . Melee . | . . . . . Ram 5 | . . 1 4 . Kick . | . . . . . Crush . | . . . . . Escape Stasis . | . . . . . Rewire . | . . . . . Trap . | . . . . . Miscellaneous . | . . . . . Route ------- -11/Scrapyard -10/Materials (discovered 2 exits: *Mat x2) -9/Materials (discovered 3 exits: *Mat x2 / [*Sto]) -8/Materials (discovered 2 exits: *Fac x2) -7/Factory (discovered 1 exit: [*Fac]) History --------- Turn | Location | Event 23 | -11/Scrapyard | Discovered new exit (range 16) 54 | -11/Scrapyard | Entered Materials 308 | -10/Materials | Discovered new exit (range 14) 335 | -10/Materials | Build established: Mutant 398 | -10/Materials | Discovered new exit (range 7) 421 | -10/Materials | Entered another Materials area 421 | -9/Materials | Evolved 2 slots: Propulsion x1, Utility x1 427 | -9/Materials | Discovered new exit (range 15) 552 | -9/Materials | Lost 3 parts (1p1n1w) 1109 | -9/Materials | Discovered new exit (range 4) 1193 | -9/Materials | Build established: Scavenger-Mutant 1312 | -9/Materials | Discovered new exit (range 3) 1414 | -9/Materials | Identified exit to Materials 1416 | -9/Materials | Entered another Materials area 1416 | -8/Materials | Evolved 2 slots: Propulsion x1, Utility x1 1651 | -8/Materials | Discovered new exit (range 11) 1980 | -8/Materials | Repaired Maneuvering Thrusters 2003 | -8/Materials | Build established: Mutant 2286 | -8/Materials | Lost 3 parts (3n) 2396 | -8/Materials | Discovered new exit (range 8) 2407 | -8/Materials | Identified exit to Factory 2407 | -8/Materials | Entered Factory 2407 | -7/Factory | Evolved 2 slots: Power x1, Weapon x1 2480 | -7/Factory | Discovered new exit (range 15) 2524 | -7/Factory | Self-destructed Last Messages --------------- 02375_ Identified Imp. VTOL Module. 02376_ S-10 Pest destroyed. 02377_ Acquired 16 matter. 02380_ Acquired 11 matter. 02381_ Acquired 109 matter. 02381_ S-10 Pest destroyed. 02383_ Acquired 19 matter. 02396_ EXIT=FOUND 02407_ EXIT=IDENTIFIED: FACTORY PARAMETERS=POWER_1,WEAPON_1 LOCATION=FACTORY GOAL=ESCAPE 02414_ Acquired Imp. Carbon-fiber Leg. 02447_ Acquired Hacking Suite. 02480_ EXIT=FOUND 02521_ Triggered Blade Trap. 02521_ Massive razor-sharp blades shoot up from within the floor. 02521_ Imp. Ion Engine severed. 02521_ Imp. Carbon-fiber Leg severed. 02523_ VTOL Module destroyed. Map ----- +----------------------------------------------------+ | ?????????????????????????????????????????????????? | | ?????????????????????????????????????????????????? | | ?????????????????????????????????????????????????? | | ?????????????????????????????????????????????????? | | ?????????????????????????????????????????????????? | | ?????????????????????????????????????????????????? | | ?????????????????????????????????????????????????? | | ?????????????????????????????????????????????????? | | ?????????????????????????????????????????????????? | | ????????????????????? ??????????????????????????? | | ??????????????????? ""????????????????????????? | | #+????????????????# ""????????????????????????? | | ????????????????# ????????????????????????? | |